Cogmind - Beta 11 @@@ ROGUE MODE // 2022.03.22 @ 17:44:06 Player: Dizzar Result: Destroyed by G-47 Trooper with Particle Gun Performance ------------- Evolutions (1) 500 Regions Visited (6) 1200 Robots Destroyed (50) 250 Value Destroyed (1128) 1128 Prototype IDs (26) 520 Alien Tech Used (0) 0 Bonus (316) 316 TOTAL SCORE: 3914 Bonus ------- High Alert Combat Kills 16 Aligned with FarCom 300 Cogmind --------- Core Integrity 0/400 Matter 265/300 Energy 64/100 System Corruption 10% Temperature Warm (139) Movement Core (250) Ox4 Location -8/Mines Parts ------- > --- POWER (1) -------- (None) > --- PROPULSION (3) --- (None) > --- UTILITY (3) ------ Medium Storage Unit 0b10 Alert Chip > --- WEAPON (2) ------- Advanced Beam Cannon > --- INVENTORY (10) --- Cooled Ion Engine Small Storage Unit Sensor Array Signal Interpreter Trap Extractor (0/4) Trap Extractor (0/4) Peak State ------------ > --- POWER ------------ Ion Engine > --- PROPULSION ------- Carbon-fiber Leg Wheel Compact Wheel > --- UTILITY ---------- Medium Storage Unit Hacking Suite Trap Extractor > --- WEAPON ----------- Improved EM Shotgun Improved EM Shotgun > --- INVENTORY -------- Cooled Ion Engine Cooled Ion Engine Small Storage Unit Sensor Array Signal Interpreter Propulsion Shielding Trap Extractor Improved EM Shotgun Improved EM Shotgun Advanced Beam Cannon [Rating: 20] Favorites ----------- Power Ion Engine Engine Ion Engine Propulsion Aluminum Leg Leg Aluminum Leg Wheel Wheel Utility Medium Storage Unit Device Trap Extractor Storage Medium Storage Unit Processor 0b10 Alert Chip Hackware Hacking Suite Protection Propulsion Shielding Weapon Medium Laser Energy Gun Medium Laser Energy Cannon Advanced Beam Cannon Build | -11 -10 -10 -9 -9 -9 -8 ------- Run | Scr Mat Min Mat Min Exi Min Slots Evolved 2 | . . . 2 . . . Power . | . . . . . . . Propulsion 1 | . . . 1 . . . Utility 1 | . . . 1 . . . Weapon . | . . . . . . . Parts Attached 33 | 6 2 3 13 5 3 1 Power 4 | 1 . . 2 1 . . Engine 4 | 1 . . 2 1 . . Core . | . . . . . . . Reactor . | . . . . . . . Propulsion 12 | 2 . 3 3 4 . . Treads . | . . . . . . . Leg 7 | 2 . 3 1 1 . . Wheel 5 | . . . 2 3 . . Hover . | . . . . . . . Flight . | . . . . . . . Utility 9 | 1 2 . 5 . 1 . Device 1 | . . . 1 . . . Storage 2 | 1 1 . . . . . Processor 1 | . . . . . 1 . Hackware 1 | . . . 1 . . . Protection 4 | . 1 . 3 . . . Artifact . | . . . . . . . Weapon 8 | 2 . . 3 . 2 1 Energy Gun 7 | 2 . . 3 . 2 . Energy Cannon 1 | . . . . . . 1 Ballistic Gun . | . . . . . . . Ballistic Cannon . | . . . . . . . Launcher . | . . . . . . . Special Weapon . | . . . . . . . Impact Weapon . | . . . . . . . Slashing Weapon . | . . . . . . . Piercing Weapon . | . . . . . . . Special Melee Weapon . | . . . . . . . Unidentified Prototypes 1 | . . . 1 . . . Parts Lost 19 | . . . 5 9 . 5 Power 3 | . . . 1 1 . 1 Propulsion 7 | . . . 1 4 . 2 Utility 4 | . . . 2 2 . . Weapon 5 | . . . 1 2 . 2 Highest Loss Streak 5 | . . . 3 5 . 5 To Critical Strikes . | . . . . . . . Average Slot Usage (%) 88 | . 95 100 92 82 59 77 Engine 11 | . 14 14 10 10 11 11 Leg 16 | . 28 28 17 7 . . Wheel 12 | . . . 11 20 33 22 Storage 11 | . 14 14 11 11 11 11 Hackware 4 | . . . 5 10 . . Protection 10 | . 9 14 12 7 . . Energy Gun 20 | . 28 28 22 14 . 22 Naked Turns . | . . . . . . . Heaviest Build 25 | 12 20 20 25 25 24 24 Greatest Support 42 | 20 20 30 30 42 42 42 Greatest Overweight (x) 2 | 2 . . 2 1 . . Average Overweight (x) . | . . . . . . . Largest Inventory Capacity 10 | 8 10 10 10 10 10 10 Average Capacity 9 | 7 9 10 10 10 10 10 Most Carried 10 | 4 9 10 10 10 9 7 Average Carried 8 | 2 6 9 9 9 8 6 Final Capacity 10 | 8 10 10 10 10 10 10 Final Carried 10 | 4 9 10 10 9 7 6 Class Distribution -------------------- 90% | Mutant 9% | Scavenger-Mutant Dominant Class ---------------- Mutant | -10/Materials Mutant | -10/Mines Mutant | -9/Materials Mutant | -9/Mines Mutant | -9/Exiles Mutant | -8/Mines Resources | -11 -10 -10 -9 -9 -9 -8 ----------- Run | Scr Mat Min Mat Min Exi Min Matter Collected 553 | 236 44 30 171 72 . . Remotely . | . . . . . . . Salvage Created 2083 | . 74 160 1006 783 . 60 Parts 96 | . 12 11 40 32 . 1 Haulers Intercepted 4 | . . . 4 . . . Recyclers Shooed 3 | . . . 2 1 . . Parts Field Recycled . | . . . . . . . Retrieved Matter . | . . . . . . . Parts Self-Destructed . | . . . . . . . Prevented . | . . . . . . . Kills | -11 -10 -10 -9 -9 -9 -8 ------- Run | Scr Mat Min Mat Min Exi Min Combat Hostiles Destroyed 31 | . 3 3 12 12 . 1 Guns 27 | . 3 3 11 9 . 1 AOE 2 | . . . . 2 . . Classes Destroyed 11 | . 2 2 5 2 . . Worker 1 | . . . 1 . . . Builder 1 | . . . 1 . . . Tunneler 1 | . . . . 1 . . Hauler 4 | . . . 4 . . . Recycler 5 | . . . 1 4 . . Operator 1 | . . . 1 . . . Watcher 6 | . 2 . 4 . . . Swarmer 9 | . 3 . . 6 . . Grunt 15 | . . 1 8 5 . 1 Brawler 1 | . . . . 1 . . Sentry 6 | . . 2 4 . . . Best Kill Streak 6 | . 3 2 3 6 . 1 Combat Bots Only 6 | . 3 2 2 6 . 1 Max Kills in Single Turn 2 | . 1 1 1 2 . 1 Gunslinging . | . . . . . . . Exploded 1 | . . . . 1 . . Melee . | . . . . . . . Uniques/NPCs Destroyed . | . . . . . . . Combat | -11 -10 -10 -9 -9 -9 -8 -------- Run | Scr Mat Min Mat Min Exi Min Damage Taken 2004 | . 22 109 740 754 . 379 Core 452 | . . 47 67 224 . 114 Absorbed by Shields . | . . . . . . . Redirected to Shielding 54 | . . . 29 25 . . Core Remaining (%) 90 | 100 . 81 . . . . Volleys Fired 104 | . 6 5 62 24 . 7 Largest 2 | . 2 2 2 2 . 2 Hottest 113 | . 100 100 100 90 . 113 Shots Fired 204 | . 12 10 122 48 . 12 Gun 202 | . 12 10 122 48 . 10 Cannon 2 | . . . . . . 2 Launcher . | . . . . . . . Special . | . . . . . . . Kinetic . | . . . . . . . Thermal 97 | . 12 10 73 . . 2 Explosive . | . . . . . . . Electromagnetic 107 | . . . 49 48 . 10 Robot Hit Streak 10 | . 7 4 10 7 . 6 Robot Miss Streak 4 | . 2 1 3 4 . 2 Penetration Max . | . . . . . . . Secondary Targets 6 | . . . 3 2 . 1 Max Gunslinging Chain 1 | . . . 1 1 . 1 Shots Hit Robots 154 | . 7 7 93 37 . 10 Core Hits 88 | . 5 5 44 28 . 6 Critical Kills . | . . . . . . . Critical Parts Destroyed . | . . . . . . . Critical Strikes 8 | . 1 . 7 . . . Burn 8 | . 1 . 7 . . . Melee Attacks . | . . . . . . . Impact . | . . . . . . . Slashing . | . . . . . . . Piercing . | . . . . . . . Sneak Attacks . | . . . . . . . Combat Hostiles . | . . . . . . . Follow-up Attacks . | . . . . . . . Damage Inflicted 2563 | . 100 87 1535 661 . 180 Guns 2302 | . 100 87 1403 573 . 139 Cannons 41 | . . . . . . 41 Explosions 220 | . . . 132 88 . . Melee . | . . . . . . . Ramming . | . . . . . . . Kinetic . | . . . . . . . Thermal 1127 | . 100 87 811 88 . 41 Explosive . | . . . . . . . Electromagnetic 1436 | . . . 724 573 . 139 Impact . | . . . . . . . Slashing . | . . . . . . . Piercing . | . . . . . . . Highest Corruption 10 | . . . 2 10 10 10 Average Corruption 4 | . . . 2 4 10 10 Corruption Purged . | . . . . . . . Corruption Blocked . | . . . . . . . Effects 26 | . . . 6 11 8 1 Message Errors 4 | . . . 1 2 1 . Matter Fused 10 | . . . 3 4 3 . Heat Flow Errors 2 | . . . 1 . 1 . Energy Discharges 2 | . . . 1 1 . . Parts Rejected 1 | . . . . . . 1 Data Loss (minor) 2 | . . . . 1 1 . Data Loss (major) 1 | . . . . . 1 . Misfires 1 | . . . . 1 . . Alerts 2 | . . . . 1 1 . Weapon Failures 1 | . . . . 1 . . Overload Shots . | . . . . . . . Overflow Damage 10 | . . . . . . 10 Projectiles 10 | . . . . . . 10 Explosions . | . . . . . . . Melee . | . . . . . . . Knockbacks . | . . . . . . . Impact . | . . . . . . . Kinetic . | . . . . . . . Secondary . | . . . . . . . Self-Inflicted Damage 19 | . . . . 19 . . Shots 1 | . . . . 1 . . Rammed 1 | . . . 1 . . . Targets Rammed 1 | . . . 1 . . . Kicked . | . . . . . . . Crushed . | . . . . . . . Highest Temperature 448 | . 97 192 448 114 232 130 Average Temperature 94 | . 40 81 116 45 119 77 Received Heat Transfer 522 | . . 18 279 126 . 99 Effects 7 | . . . 7 . . . Shutdowns 1 | . . . 1 . . . Energy Bleed 3 | . . . 3 . . . Interference 2 | . . . 2 . . . Matter Decay 1 | . . . 1 . . . Siege Activations . | . . . . . . . Robots Corrupted 2 | . . . 1 1 . . Combat Hostiles 2 | . . . 1 1 . . Parts Fried 6 | . . . 5 . . 1 Impact Corruptions . | . . . . . . . Robots Melted . | . . . . . . . Combat Hostiles . | . . . . . . . Parts Melted 11 | . 1 . 10 . . . Heat Transferred 3469 | . 370 259 2666 100 . 74 Parts Sabotaged . | . . . . . . . Parts Stolen . | . . . . . . . Parts Stripped . | . . . . . . . Power Chain Reactions 5 | . . . 3 2 . . Missiles Intercepted . | . . . . . . . Alert | -11 -10 -10 -9 -9 -9 -8 ------- Run | Scr Mat Min Mat Min Exi Min Peak Influence 430 | . 124 133 300 430 . 16 Initial 64 | . . 48 51 64 . . Average 158 | . 59 102 170 264 . 2 Maximum Alert Level 2 | . . . 1 2 . . Low Security (%) 68 | 100 100 100 64 34 . 100 Level 1 25 | . . . 35 38 . . Level 2 5 | . . . . 26 . . Level 3 . | . . . . . . . Level 4 . | . . . . . . . Level 5 . | . . . . . . . High Security . | . . . . . . . Max Security . | . . . . . . . Squads Dispatched 5 | . 1 . 4 . . . Investigation 3 | . . . 3 . . . Extermination . | . . . . . . . Reinforcement 2 | . 1 . 1 . . . Assault . | . . . . . . . Garrison . | . . . . . . . Intercept . | . . . . . . . Searches Triggered . | . . . . . . . Construction Impeded . | . . . . . . . Haulers Reinforced . | . . . . . . . Active Scanning Responses . | . . . . . . . Cargo Convoy Interrupts . | . . . . . . . Stealth | -11 -10 -10 -9 -9 -9 -8 --------- Run | Scr Mat Min Mat Min Exi Min Distress Signals 5 | . . . 5 . . . Communications Jammed . | . . . . . . . Distress Signals . | . . . . . . . Times Spotted 57 | . 5 3 22 24 . 3 Peak Tracking Total 5 | . 3 2 4 5 . 3 Tactical Retreats 8 | . . . 5 3 . . Traps | -11 -10 -10 -9 -9 -9 -8 ------- Run | Scr Mat Min Mat Min Exi Min Traps Triggered 4 | . . . 4 . . . Indirectly . | . . . . . . . Trap Hack Attempts . | . . . . . . . Triggered . | . . . . . . . Disarmed . | . . . . . . . Reprogrammed . | . . . . . . . Reused . | . . . . . . . Traps Extracted . | . . . . . . . Installed . | . . . . . . . Triggered . | . . . . . . . Machines | -11 -10 -10 -9 -9 -9 -8 ---------- Run | Scr Mat Min Mat Min Exi Min Machines Disabled 2 | . . . 1 1 . . Max in Single Turn 1 | . . . 1 1 . . Machines Sabotaged . | . . . . . . . Garrisons Compromised . | . . . . . . . Overloaded Fab Kills . | . . . . . . . Hacking | -11 -10 -10 -9 -9 -9 -8 --------- Run | Scr Mat Min Mat Min Exi Min Machines Accessed 14 | . 4 1 7 . 2 . Terminals 9 | . 4 . 5 . . . Fabricators . | . . . . . . . Repair Stations . | . . . . . . . Recycling Units 1 | . . . 1 . . . Scanalyzers 1 | . . . 1 . . . Garrison Access . | . . . . . . . Total Hacks 52 | . 11 1 35 . 5 . Successful 36 | . 4 1 26 . 5 . Failed 16 | . 7 . 9 . . . Catastrophic 3 | . 1 . 2 . . . Database Lockouts . | . . . . . . . Manual 26 | . 10 . 15 . 1 . Terminals 25 | . 11 . 14 . . . Fabricators . | . . . . . . . Repair Stations . | . . . . . . . Recycling Units 2 | . . . 2 . . . Scanalyzers 19 | . . . 19 . . . Garrison Access . | . . . . . . . Terminal Hacks 9 | . 1 1 2 . 5 . Record 4 | . . . . . 4 . Open Door 1 | . . 1 . . . . Branch Access Points 2 | . 1 . 1 . . . Unreport Threat 1 | . . . 1 . . . EX-Prototype ID Bank 1 | . . . . . 1 . Fabricator Hacks . | . . . . . . . Repair Station Hacks . | . . . . . . . Recycling Unit Hacks 1 | . . . 1 . . . Retrieve Components 1 | . . . 1 . . . Scanalyzer 19 | . . . 19 . . . Insert Component 9 | . . . 9 . . . Analyze 10 | . . . 10 . . . Garrison Access Hacks . | . . . . . . . Unauthorized Hacks 7 | . 3 . 4 . . . Terminals 6 | . 3 . 3 . . . Botnet 6 | . 3 . 3 . . . Fabricators . | . . . . . . . Repair Stations . | . . . . . . . Recycling Units 1 | . . . 1 . . . Reject 1 | . . . 1 . . . Scanalyzers . | . . . . . . . Garrison Access . | . . . . . . . Data Cores Recovered . | . . . . . . . Used . | . . . . . . . Hacking Detections 10 | . 3 . 7 . . . Full Trace Events 3 | . . . 3 . . . Feedback Events . | . . . . . . . Feedback Blocked . | . . . . . . . Robot Schematics Acquired . | . . . . . . . Robots Built . | . . . . . . . Authchips . | . . . . . . . Time . | . . . . . . . Total Robot Build Rating . | . . . . . . . Part Schematics Acquired 7 | . . . 7 . . . Parts Built . | . . . . . . . Authchips . | . . . . . . . Time . | . . . . . . . Total Part Build Rating . | . . . . . . . Parts Repaired . | . . . . . . . Time . | . . . . . . . Parts Recycled . | . . . . . . . Recycled Matter . | . . . . . . . Retrieved Matter . | . . . . . . . Retrieved Components . | . . . . . . . Parts Scanalyzed 7 | . . . 7 . . . Part Schematics Acquired 7 | . . . 7 . . . Parts Damaged 1 | . . . 1 . . . Bothacking | -11 -10 -10 -9 -9 -9 -8 ------------ Run | Scr Mat Min Mat Min Exi Min Used RIF Installer . | . . . . . . . Robots Hacked . | . . . . . . . Non-combat . | . . . . . . . Combat . | . . . . . . . Robot Hacks Applied . | . . . . . . . Relay Couplers Released . | . . . . . . . Fabnet Peak Effective % . | . . . . . . . Robots Rewired . | . . . . . . . Allies Hacked . | . . . . . . . Hacks Repelled . | . . . . . . . Allies | -11 -10 -10 -9 -9 -9 -8 -------- Run | Scr Mat Min Mat Min Exi Min Total Allies . | . . . . . . . Largest Group . | . . . . . . . Highest-Rated Group . | . . . . . . . Highest-Rated Ally . | . . . . . . . Total Orders . | . . . . . . . Ally Attacks . | . . . . . . . Total Damage . | . . . . . . . Kills . | . . . . . . . Allies Corrupted . | . . . . . . . Allies Melted . | . . . . . . . Intel | -11 -10 -10 -9 -9 -9 -8 ------- Run | Scr Mat Min Mat Min Exi Min Robot Analysis Total . | . . . . . . . Derelict Logs Recovered 2 | . . . . 2 . . Drone Launches . | . . . . . . . Drone Recoveries . | . . . . . . . Exploration | -11 -10 -10 -9 -9 -9 -8 ------------- Run | Scr Mat Min Mat Min Exi Min Turns Passed 2388 | 69 378 200 1035 482 203 21 Spaces Moved 1824 | 46 289 138 723 412 215 1 Core 7 | 7 . . . . . . Treads . | . . . . . . . Legs 606 | 39 289 138 140 . . . Wheels 1211 | . . . 583 412 215 1 Hover . | . . . . . . . Flight . | . . . . . . . Fastest Speed 50 | 50 120 120 90 90 93 93 Average Speed 104 | 123 120 120 103 95 93 93 Slowest Speed 190 | 190 120 120 190 115 93 93 Overloaded Moves . | . . . . . . . Propulsion Burnouts . | . . . . . . . Robots Hopped . | . . . . . . . Cave-ins Triggered . | . . . . . . . Exploration Rate (%) 37 | 4 63 37 43 53 60 2 Regions Visited 6 Branch Regions 4 Pre-discovered Areas 2 | . . . . 1 1 . Known Exits Taken 2 | . 1 . 1 . . . Unknown Exits Taken 4 | 1 . 1 . 1 1 . Scrap Searched 2 | . . 1 . 1 . . Spaces Dug . | . . . . . . . Terrain Destroyed 15 | . . . 8 7 . . Melee . | . . . . . . . Projectile . | . . . . . . . AOE 15 | . . . 8 7 . . Terrain Rammed . | . . . . . . . Walls Destroyed . | . . . . . . . Machines Disabled . | . . . . . . . Actions | -11 -10 -10 -9 -9 -9 -8 --------- Run | Scr Mat Min Mat Min Exi Min Total 2094 | 55 307 165 893 448 217 9 Wait 90 | . 6 14 62 8 . . Move 1818 | 45 288 137 722 411 214 1 Hop . | . . . . . . . Pick Up 27 | 4 4 2 17 . . . Fast Attach 18 | 6 2 . 5 4 1 . Attach 10 | . . . 6 1 2 1 Detach 1 | . 1 . . . . . Swap 5 | . . 3 2 . . . Drop 20 | . . 4 16 . . . Fire 104 | . 6 5 62 24 . 7 Melee . | . . . . . . . Ram 1 | . . . 1 . . . Kick . | . . . . . . . Crush . | . . . . . . . Escape Stasis . | . . . . . . . Rewire . | . . . . . . . Trap . | . . . . . . . Miscellaneous . | . . . . . . . Route ------- -11/Scrapyard -10/Materials (discovered 3 exits: *Mat x2 / *Min) -10/Mines -9/Materials (discovered 3 exits: [*Mat] / *Min x2) -9/Mines (discovered 3 exits: [*Mat x2] / *Exi) -9/Exiles -8/Mines History --------- Turn | Location | Event 22 | -11/Scrapyard | Discovered new exit (range 16) 70 | -11/Scrapyard | Entered Materials 255 | -10/Materials | Discovered new exit (range 4) 305 | -10/Materials | Build established: Mutant 343 | -10/Materials | Discovered new exit (range 10) 363 | -10/Materials | Identified exit to Mines 448 | -10/Materials | Entered Mines 571 | -10/Mines | Met a Derelict who couldn't figure out how to use a Trap Extractor 612 | -10/Mines | Discovered new exit (range 12) 648 | -10/Mines | Entered Materials 648 | -9/Materials | Evolved 2 slots: Propulsion x1, Utility x1 922 | -9/Materials | Lost 3 parts (1n2u) 1145 | -9/Materials | Discovered new exit (range 15) 1556 | -9/Materials | Identified exit to Mines 1683 | -9/Materials | Entered Mines 1688 | -9/Mines | Learned location of 1 exit from Lower Caves 1817 | -9/Mines | Discovered new exit (range 4) 1992 | -9/Mines | Learned location of Zion (-6) 2009 | -9/Mines | Assembled infested the area 2009 | -9/Mines | Discovered new exit (range 7) 2016 | -9/Mines | Core integrity fell below 50% 2046 | -9/Mines | Lost 5 parts (2n1u2w) 2126 | -9/Mines | System corruption reached 10% 2161 | -9/Mines | Deemed a non-threat by the Exiles lab entrance 2161 | -9/Mines | Discovered new exit (range 5) 2165 | -9/Mines | Entered Exiles 2188 | -9/Exiles | Met 8R-AWN 2204 | -9/Exiles | Met EX-HEX 2232 | -9/Exiles | Met EX-BIN 2242 | -9/Exiles | Aligned with FarCom system 2243 | -9/Exiles | Given EX-Vault access code 2264 | -9/Exiles | Opened EX-Vault 2272 | -9/Exiles | Found 0b10 Alert Chip 2293 | -9/Exiles | Warned to stay clear of 0b10 Research branches 2320 | -9/Exiles | Met EX-DEC 2355 | -9/Exiles | Discovered new exit (range 14) 2368 | -9/Exiles | Left Exiles lab with 0b10 Alert Chip 2368 | -9/Exiles | Entered Mines 2382 | -8/Mines | Core integrity fell below 20% 2389 | -8/Mines | Destroyed by G-47 Trooper with Particle Gun Last Messages --------------- >>Record "MSG004902-01*" PINNED - I saw a Programmer snooping around in the Mines recently, it's only a matter of time before they find us. We might need to prioritize getting out of here and finding a better environment less hostile to science. 02345_ System corrupted: Matter fused (-5). 02355_ EXIT=FOUND LOCATION=UNKNOWN GOAL=ESCAPE 02368_ Receiving FarCom transmissions... 02376_ Wheel destroyed. 02376_ Com. Wheel destroyed. 02378_ Particle Gun fried. 02378_ G-47 Trooper destroyed. 02378_ Switching to secondary target: L-31 Rogue. 02381_ Imp. EM Shotgun destroyed. 02383_ Cld. Ion Engine destroyed. 02384_ Destroyed Melee Analysis Suite. 02386_ Imp. EM Shotgun destroyed. 02387_ System corrupted: Com. Wheel rejected. Map ----- +----------------------------------------------------+ | | | | | | | | | | | | | ?????????????????????????????? | | ?????????????????????????????? | | ?????????????????????????????? | | ?????????????????????????????? | | ?????????????????????????????? | | ?????????????????????????????? | | ?????????????????????????????? | | ?????????????????????????????? | | ?????????????????????????????? | | ?????????????????????????????? | | ?????????????????????????????? | | ?????????????????????????????? | | ?????????????????????????????? | | ?????????????????????????????? | | ?????????????????????????????? | | ?????????????????????????????? | | ?????????????????????????????? | | ???####??????????????????????? | | ??## ##?????????????????????? | | ??# l@ #?????????????????????? | | ??# %g #?????????????????????? | | ??# ????????????????????? | | ??# ??????????????????? | | ??## # ####?????????????????? | | ???#### #????????????????????? | | ???????t ????????????????????? | | ???????? ???????????????????? | | ???????? ??????????????????? | | ???????? ??????????????????? | | ????????? #?????????????????? | | ?????????###?????????????????? | | ?????????????????????????????? | | ?????????????????????????????? | | ?????????????????????????????? | | ?????????????????????????????? | | ?????????????????????????????? | | ?????????????????????????????? | | ?????????????????????????????? | | ?????????????????????????????? | | ?????????????????????????????? | | ?????????????????????????????? | | ?????????????????????????????? | | ?????????????????????????????? | | ?????????????????????????????? | +----------------------------------------------------+ Best States ------------- Heat Dissipation 28 Energy Generation 14 Energy Capacity 280 Matter Stores 300 Matter Capacity 300 Sight Range 16 Terrain Scan Density 10 Armor Coverage 300 Propulsion Shielding 33 Evasion (%) 55 Offensive Hacking 10 Trap Extractor Capacity 4 Item Schematics ----------------- Trap Extractor | -9/Materials | Scanalyzed Sml. Storage Unit | -9/Materials | Scanalyzed Imp. EM Shotgun | -9/Materials | Scanalyzed Adv. Beam Cannon | -9/Materials | Scanalyzed Signal Interpreter | -9/Materials | Scanalyzed Sensor Array | -9/Materials | Scanalyzed Imp. Ion Engine | -9/Materials | Scanalyzed Robot Schematics ------------------ None Fabricated ------------ Nothing Alien Tech Used ----------------- None Achievements -------------- None Challenges ------------ None Game ------ Seed InsulatedMicrowarpCore Manual? 0 Play Time 00:26:41 Cumulative 23.4 hours Start 2022.03.22 @ 17:17:08 End 2022.03.22 @ 17:44:06 Sessions 1 Manual Loads 0 Difficulty Rogue Special Mode None Game No. 27 Rogue 27 Adventurer 0 Explorer 0 Win Type - Total 1 Types 1/0/0/0/0/0/0/0/0 Lore% 24 Gallery% 29 Achievement% 28 Wizard Run 0 Options --------- ASCII 0 Keyboard 0 Movement Numpad Keybinds 0 Fullscreen 1 Font 18/SmallcapsGlow Map View 76x50 Tactical HUD 1 Map Filters NONE Filters NONE Steam 1 RUN: 1b843758-4bbc-4707-ab8e-0621623fa255